[Event "Late-Titled-Tuesday-Blitz-May-14-2024"]
[Site "Chess.com"]
[Date "2024.05.14"]
[Round "6"]
[White "Arystanner"]
[Black "HowTo2Draw"]
[Result "1/2-1/2"]
[WhiteElo "2830"]
[BlackElo "2586"]
[TimeControl "180+1"]
[EndTime "15:04:41 PDT"]
[Termination "Game drawn by repetition"]

1. d4 {[%clk 0:03:00.9]} 1... f5 {[%clk 0:03:00.2]} 2. e4 {[%clk 0:02:59.4]}
2... fxe4 {[%clk 0:02:57.2]} 3. Nc3 {[%clk 0:02:59.8]} 3... Nf6 {[%clk
0:02:55.5]} 4. Bg5 {[%clk 0:02:59.9]} 4... e6 {[%clk 0:02:45.4]} 5. Nxe4 {[%clk
0:02:57.9]} 5... Be7 {[%clk 0:02:45.4]} 6. Bxf6 {[%clk 0:02:55.9]} 6... Bxf6
{[%clk 0:02:45.4]} 7. Nf3 {[%clk 0:02:56.4]} 7... O-O {[%clk 0:02:45]} 8. Bd3
{[%clk 0:02:56.9]} 8... b6 {[%clk 0:02:42.1]} 9. h4 {[%clk 0:02:54.3]} 9... Bb7
{[%clk 0:02:36.4]} 10. Qe2 {[%clk 0:02:54.4]} 10... Nc6 {[%clk 0:02:33.3]} 11.
O-O-O {[%clk 0:02:52.3]} 11... Nb4 {[%clk 0:02:22.5]} 12. Kb1 {[%clk 0:02:50.2]}
12... Nxd3 {[%clk 0:02:22.3]} 13. Qxd3 {[%clk 0:02:50.4]} 13... Qe7 {[%clk
0:02:15.5]} 14. Nfg5 {[%clk 0:02:34.2]} 14... Bxe4 {[%clk 0:02:03]} 15. Nxe4
{[%clk 0:02:32.7]} 15... g6 {[%clk 0:01:51.8]} 16. g3 {[%clk 0:02:30.8]} 16...
Bh8 {[%clk 0:01:44.6]} 17. f4 {[%clk 0:02:31]} 17... Rf5 {[%clk 0:01:37.8]} 18.
h5 {[%clk 0:02:27.9]} 18... Rxh5 {[%clk 0:01:28.4]} 19. Rxh5 {[%clk 0:02:27.6]}
19... gxh5 {[%clk 0:01:29.3]} 20. Rh1 {[%clk 0:02:28]} 20... Qf7 {[%clk
0:01:24.9]} 21. Ng5 {[%clk 0:02:28.3]} 21... Qg6 {[%clk 0:01:20.5]} 22. Qf3
{[%clk 0:02:28.6]} 22... Rf8 {[%clk 0:01:15]} 23. Rxh5 {[%clk 0:02:28.1]} 23...
h6 {[%clk 0:01:00.9]} 24. Qh1 {[%clk 0:02:18.3]} 24... Bg7 {[%clk 0:00:57.4]}
25. Nf3 {[%clk 0:02:18]} 25... Qxg3 {[%clk 0:00:52.4]} 26. a3 {[%clk 0:02:15.2]}
26... Qxf4 {[%clk 0:00:51.6]} 27. Rh3 {[%clk 0:02:11.3]} 27... c5 {[%clk
0:00:49.1]} 28. c3 {[%clk 0:02:00]} 28... Qe4+ {[%clk 0:00:48.9]} 29. Ka1 {[%clk
0:01:59.6]} 29... cxd4 {[%clk 0:00:48.6]} 30. cxd4 {[%clk 0:02:00.5]} 30... Rf4
{[%clk 0:00:34.4]} 31. Qg2 {[%clk 0:01:48.1]} 31... Rg4 {[%clk 0:00:33.9]} 32.
Qd2 {[%clk 0:01:46.4]} 32... Qf4 {[%clk 0:00:33.5]} 33. Qc2 {[%clk 0:01:38.9]}
33... Rg3 {[%clk 0:00:32.9]} 34. Qc8+ {[%clk 0:01:39]} 34... Kh7 {[%clk
0:00:32.3]} 35. Qc2+ {[%clk 0:01:37.9]} 35... Kg8 {[%clk 0:00:30]} 36. Qc8+
{[%clk 0:01:37.9]} 36... Kh7 {[%clk 0:00:30.2]} 37. Qc2+ {[%clk 0:01:28.5]}
37... Kg8 {[%clk 0:00:29.9]} 1/2-1/2

[Event "Late-Titled-Tuesday-Blitz-May-14-2024"]
[Site "Chess.com"]
[Date "2024.05.14"]
[Round "6"]
[White "LUISMIGUELOV"]
[Black "ShahMatKanal"]
[Result "0-1"]
[WhiteElo "2223"]
[BlackElo "2388"]
[TimeControl "180+1"]
[EndTime "15:04:47 PDT"]
[Termination "ShahMatKanal won by checkmate"]

1. d4 {[%clk 0:02:27]} 1... d5 {[%clk 0:02:57.8]} 2. c3 {[%clk 0:02:27.4]} 2...
c5 {[%clk 0:02:55.5]} 3. dxc5 {[%clk 0:02:23.9]} 3... e5 {[%clk 0:02:51.7]} 4.
b4 {[%clk 0:02:23.8]} 4... a5 {[%clk 0:02:47.1]} 5. Bb2 {[%clk 0:02:23.5]} 5...
Nf6 {[%clk 0:02:33.8]} 6. a3 {[%clk 0:02:22.1]} 6... b6 {[%clk 0:02:30.3]} 7.
cxb6 {[%clk 0:02:20.9]} 7... Qxb6 {[%clk 0:02:31.2]} 8. e3 {[%clk 0:02:18.2]}
8... Nc6 {[%clk 0:02:22.1]} 9. b5 {[%clk 0:02:13.1]} 9... Nd8 {[%clk 0:02:14.7]}
10. a4 {[%clk 0:02:12.5]} 10... Bd6 {[%clk 0:02:04.9]} 11. Nf3 {[%clk
0:02:12.2]} 11... O-O {[%clk 0:02:04]} 12. Be2 {[%clk 0:02:11.7]} 12... Bb7
{[%clk 0:01:59.9]} 13. O-O {[%clk 0:02:10.7]} 13... Ne6 {[%clk 0:01:58.7]} 14.
Ba3 {[%clk 0:02:10.5]} 14... Nc5 {[%clk 0:01:55.1]} 15. Bxc5 {[%clk 0:02:08.8]}
15... Qxc5 {[%clk 0:01:54.6]} 16. Qc2 {[%clk 0:01:52.7]} 16... Rac8 {[%clk
0:01:41.7]} 17. Rc1 {[%clk 0:01:50.6]} 17... Ne4 {[%clk 0:01:38.7]} 18. Nfd2
{[%clk 0:01:47.5]} 18... f5 {[%clk 0:01:36.1]} 19. Nxe4 {[%clk 0:01:47.1]} 19...
fxe4 {[%clk 0:01:31.9]} 20. Nd2 {[%clk 0:01:45.7]} 20... Rxf2 {[%clk 0:01:14.3]}
21. Kxf2 {[%clk 0:01:41.3]} 21... Qxe3+ {[%clk 0:01:14.9]} 22. Ke1 {[%clk
0:01:41]} 22... Bc5 {[%clk 0:00:45]} 23. Nf1 {[%clk 0:01:39.4]} 23... Qf2+
{[%clk 0:00:44.3]} 24. Kd1 {[%clk 0:01:39.5]} 24... Rf8 {[%clk 0:00:38.1]} 25.
Ra2 {[%clk 0:01:38.1]} 25... Kh8 {[%clk 0:00:28.4]} 26. Ng3 {[%clk 0:01:17.6]}
26... Qg1+ {[%clk 0:00:24.5]} 27. Bf1 {[%clk 0:01:07.6]} 27... Rxf1+ {[%clk
0:00:23.2]} 28. Nxf1 {[%clk 0:01:07.4]} 28... Qxf1+ {[%clk 0:00:24.1]} 29. Kd2
{[%clk 0:01:07.2]} 29... e3# {[%clk 0:00:24.7]} 0-1

[Event "Late-Titled-Tuesday-Blitz-May-14-2024"]
[Site "Chess.com"]
[Date "2024.05.14"]
[Round "6"]
[White "sergoy"]
[Black "Nor1lsk"]
[Result "1-0"]
[WhiteElo "3010"]
[BlackElo "2785"]
[TimeControl "180+1"]
[EndTime "15:04:48 PDT"]
[Termination "sergoy won by checkmate"]

1. d4 {[%clk 0:03:00.9]} 1... g6 {[%clk 0:02:59.4]} 2. c4 {[%clk 0:03:00.6]}
2... Bg7 {[%clk 0:02:59.6]} 3. Nf3 {[%clk 0:03:00.9]} 3... c5 {[%clk 0:02:59.6]}
4. d5 {[%clk 0:02:59.5]} 4... d6 {[%clk 0:02:59.5]} 5. e4 {[%clk 0:02:57.9]}
5... e6 {[%clk 0:02:59.6]} 6. Nc3 {[%clk 0:02:57.2]} 6... Ne7 {[%clk 0:02:59.8]}
7. dxe6 {[%clk 0:02:48.5]} 7... Bxe6 {[%clk 0:02:57.6]} 8. Bf4 {[%clk
0:02:47.9]} 8... Nbc6 {[%clk 0:02:54.2]} 9. Qd2 {[%clk 0:02:42]} 9... O-O {[%clk
0:02:52]} 10. h4 {[%clk 0:02:40.9]} 10... h5 {[%clk 0:02:40.5]} 11. Bh6 {[%clk
0:02:40]} 11... Qa5 {[%clk 0:02:26.4]} 12. Bxg7 {[%clk 0:02:35.8]} 12... Kxg7
{[%clk 0:02:26.4]} 13. Ng5 {[%clk 0:02:36.4]} 13... Nd4 {[%clk 0:02:23.3]} 14.
Bd3 {[%clk 0:02:33.4]} 14... Bg4 {[%clk 0:02:06.2]} 15. f3 {[%clk 0:02:32.7]}
15... Bd7 {[%clk 0:02:05.8]} 16. g4 {[%clk 0:02:32]} 16... f6 {[%clk 0:02:01.3]}
17. O-O-O {[%clk 0:02:20.9]} 17... fxg5 {[%clk 0:02:00.8]} 18. Qxg5 {[%clk
0:02:21.8]} 18... Rf6 {[%clk 0:01:39.3]} 19. gxh5 {[%clk 0:02:21.7]} 19... Nxf3
{[%clk 0:01:38.6]} 20. h6+ {[%clk 0:02:22.1]} 20... Kf7 {[%clk 0:01:34.7]} 21.
Qg3 {[%clk 0:02:22.3]} 21... Ne5 {[%clk 0:01:23.6]} 22. Rhf1 {[%clk 0:02:21.1]}
22... Rxf1 {[%clk 0:01:10.3]} 23. Rxf1+ {[%clk 0:02:20.8]} 23... Kg8 {[%clk
0:01:10.7]} 24. Be2 {[%clk 0:02:20.5]} 24... Kh7 {[%clk 0:01:03.3]} 25. Qg5
{[%clk 0:02:10.8]} 25... Ng8 {[%clk 0:00:42.7]} 26. h5 {[%clk 0:02:09.5]} 26...
Be8 {[%clk 0:00:30.7]} 27. Rf8 {[%clk 0:02:00.3]} 27... Qc7 {[%clk 0:00:22.6]}
28. Nd5 {[%clk 0:01:58.6]} 28... Qd8 {[%clk 0:00:17.3]} 29. Qg3 {[%clk 0:01:45]}
29... g5 {[%clk 0:00:16.1]} 30. Bg4 {[%clk 0:01:42.6]} 30... Kxh6 {[%clk
0:00:12.7]} 31. Rxg8 {[%clk 0:01:39.4]} 31... Qa5 {[%clk 0:00:10.9]} 32. Bf5
{[%clk 0:01:35.4]} 32... Qxa2 {[%clk 0:00:09.1]} 33. Qxg5# {[%clk 0:01:35.1]}
1-0

[Event "Late-Titled-Tuesday-Blitz-May-14-2024"]
[Site "Chess.com"]
[Date "2024.05.14"]
[Round "6"]
[White "KatakuriDono"]
[Black "rikchessmx"]
[Result "1-0"]
[WhiteElo "2305"]
[BlackElo "2437"]
[TimeControl "180+1"]
[EndTime "15:04:49 PDT"]
[Termination "KatakuriDono won by resignation"]

1. d4 {[%clk 0:03:00.9]} 1... Nf6 {[%clk 0:02:03.9]} 2. Nf3 {[%clk 0:02:58.9]}
2... e6 {[%clk 0:01:30]} 3. g3 {[%clk 0:02:57.5]} 3... Be7 {[%clk 0:01:29]} 4.
Bg2 {[%clk 0:02:56.7]} 4... O-O {[%clk 0:01:27.5]} 5. O-O {[%clk 0:02:56.7]}
5... d6 {[%clk 0:01:27.9]} 6. c4 {[%clk 0:02:56.5]} 6... Nbd7 {[%clk 0:01:27.8]}
7. Nc3 {[%clk 0:02:56.4]} 7... e5 {[%clk 0:01:28]} 8. dxe5 {[%clk 0:02:52.6]}
8... dxe5 {[%clk 0:01:27.5]} 9. e4 {[%clk 0:02:50.2]} 9... c6 {[%clk 0:01:26.5]}
10. Re1 {[%clk 0:02:49.9]} 10... Qc7 {[%clk 0:01:26.7]} 11. h3 {[%clk
0:02:46.6]} 11... Rd8 {[%clk 0:01:25.7]} 12. Qe2 {[%clk 0:02:46.5]} 12... h6
{[%clk 0:01:25.2]} 13. Be3 {[%clk 0:02:46.3]} 13... Nf8 {[%clk 0:01:25]} 14.
Rad1 {[%clk 0:02:45.7]} 14... Ne6 {[%clk 0:01:21.9]} 15. Rxd8+ {[%clk
0:02:41.4]} 15... Qxd8 {[%clk 0:01:20.1]} 16. Nxe5 {[%clk 0:02:36.8]} 16... Bb4
{[%clk 0:01:19.4]} 17. Rd1 {[%clk 0:02:35.4]} 17... Qe7 {[%clk 0:01:19.4]} 18.
f4 {[%clk 0:02:27.9]} 18... Bxc3 {[%clk 0:01:11.7]} 19. bxc3 {[%clk 0:02:27.7]}
19... Nc5 {[%clk 0:01:11.6]} 20. Bxc5 {[%clk 0:02:19.2]} 20... Qxc5+ {[%clk
0:01:10.3]} 21. Qf2 {[%clk 0:02:19.8]} 21... Qe7 {[%clk 0:01:03.5]} 22. Qd4
{[%clk 0:02:16.8]} 22... Be6 {[%clk 0:01:03.2]} 23. c5 {[%clk 0:02:12.6]} 23...
Bxa2 {[%clk 0:00:59.6]} 24. Qd6 {[%clk 0:02:10.2]} 24... Qe8 {[%clk 0:00:52.3]}
25. g4 {[%clk 0:02:02.9]} 25... Bb3 {[%clk 0:00:47.1]} 26. Rb1 {[%clk
0:01:58.6]} 26... Bc2 {[%clk 0:00:45.4]} 27. Rxb7 {[%clk 0:01:56.9]} 27... Nxe4
{[%clk 0:00:44]} 28. Qxc6 {[%clk 0:01:54.8]} 28... Nxc3 {[%clk 0:00:24.2]} 29.
Rxa7 {[%clk 0:01:37.8]} 29... Ne2+ {[%clk 0:00:20.4]} 30. Kh2 {[%clk 0:01:36.7]}
30... Qxc6 {[%clk 0:00:20.2]} 31. Nxc6 {[%clk 0:01:35.7]} 31... Rxa7 {[%clk
0:00:20.3]} 32. Nxa7 {[%clk 0:01:35.9]} 32... Nxf4 {[%clk 0:00:20.8]} 33. c6
{[%clk 0:01:33.4]} 33... Nxg2 {[%clk 0:00:20.3]} 34. c7 {[%clk 0:01:28.5]} 34...
Nf4 {[%clk 0:00:16.2]} 35. c8=Q+ {[%clk 0:01:28.4]} 35... Kh7 {[%clk 0:00:17.1]}
36. Qxc2+ {[%clk 0:01:28.5]} 1-0

[Event "Late-Titled-Tuesday-Blitz-May-14-2024"]
[Site "Chess.com"]
[Date "2024.05.14"]
[Round "6"]
[White "varunkrishnanchess"]
[Black "duone"]
[Result "1-0"]
[WhiteElo "2607"]
[BlackElo "2433"]
[TimeControl "180+1"]
[EndTime "15:05:04 PDT"]
[Termination "varunkrishnanchess won by checkmate"]

1. a3 {[%clk 0:02:23]} 1... e5 {[%clk 0:02:56.5]} 2. c4 {[%clk 0:02:22.3]} 2...
Nf6 {[%clk 0:02:54.9]} 3. Nc3 {[%clk 0:02:21.3]} 3... c6 {[%clk 0:02:52.9]} 4.
d4 {[%clk 0:02:15]} 4... e4 {[%clk 0:02:51.8]} 5. d5 {[%clk 0:02:14.7]} 5... Bc5
{[%clk 0:02:50.4]} 6. b4 {[%clk 0:02:10.9]} 6... Bxf2+ {[%clk 0:02:40.3]} 7.
Kxf2 {[%clk 0:02:10.1]} 7... Ng4+ {[%clk 0:02:40.6]} 8. Ke1 {[%clk 0:02:08.9]}
8... Qf6 {[%clk 0:02:19.1]} 9. Nxe4 {[%clk 0:02:06.5]} 9... Qxa1 {[%clk
0:02:19.1]} 10. Nd6+ {[%clk 0:02:05.7]} 10... Kf8 {[%clk 0:02:19.5]} 11. Nxc8
{[%clk 0:02:03.8]} 11... Qc3+ {[%clk 0:02:11.2]} 12. Qd2 {[%clk 0:02:02.9]}
12... Qf6 {[%clk 0:02:07]} 13. Qf4 {[%clk 0:01:57.7]} 13... Qc3+ {[%clk
0:02:04.3]} 14. Kd1 {[%clk 0:01:56.9]} 14... Qb3+ {[%clk 0:01:53.1]} 15. Kd2
{[%clk 0:01:56.3]} 15... Qa2+ {[%clk 0:01:52.9]} 16. Ke1 {[%clk 0:01:54.7]}
16... h6 {[%clk 0:01:18.5]} 17. Qxg4 {[%clk 0:01:47.4]} 17... Qc2 {[%clk
0:01:17.8]} 18. Qf4 {[%clk 0:01:44.3]} 18... cxd5 {[%clk 0:01:13.1]} 19. Nd6
{[%clk 0:01:26.9]} 19... f6 {[%clk 0:01:04.4]} 20. c5 {[%clk 0:01:27]} 20... Nc6
{[%clk 0:01:03.5]} 21. Qd2 {[%clk 0:01:23.4]} 21... Qb1 {[%clk 0:00:55.1]} 22.
Nf3 {[%clk 0:01:18.4]} 22... d4 {[%clk 0:00:48.1]} 23. g3 {[%clk 0:01:12.1]}
23... a5 {[%clk 0:00:45.9]} 24. b5 {[%clk 0:01:11.3]} 24... Ne5 {[%clk
0:00:45.6]} 25. Nxe5 {[%clk 0:01:10.9]} 25... fxe5 {[%clk 0:00:46]} 26. Bh3
{[%clk 0:01:10.8]} 26... Kg8 {[%clk 0:00:41.8]} 27. Bxd7 {[%clk 0:01:04.7]}
27... Rf8 {[%clk 0:00:41.4]} 28. Be6+ {[%clk 0:01:01.7]} 28... Kh7 {[%clk
0:00:41.7]} 29. Qd3+ {[%clk 0:01:01.4]} 29... Qxd3 {[%clk 0:00:41.9]} 30. exd3
{[%clk 0:01:01.2]} 30... Rf3 {[%clk 0:00:42.2]} 31. Ke2 {[%clk 0:00:57.3]} 31...
Rhf8 {[%clk 0:00:41.7]} 32. Bf5+ {[%clk 0:00:57.4]} 32... R8xf5 {[%clk 0:00:42]}
33. Nxf5 {[%clk 0:00:57.4]} 33... Rxf5 {[%clk 0:00:42.9]} 34. Rf1 {[%clk
0:00:56.2]} 34... Rh5 {[%clk 0:00:42.3]} 35. h4 {[%clk 0:00:55.9]} 35... g5
{[%clk 0:00:42.8]} 36. c6 {[%clk 0:00:56.1]} 36... bxc6 {[%clk 0:00:42.5]} 37.
bxc6 {[%clk 0:00:56.6]} 37... e4 {[%clk 0:00:42.9]} 38. c7 {[%clk 0:00:56.5]}
38... gxh4 {[%clk 0:00:43.3]} 39. c8=Q {[%clk 0:00:56]} 39... exd3+ {[%clk
0:00:43.9]} 40. Kxd3 {[%clk 0:00:55.8]} 40... h3 {[%clk 0:00:42.2]} 41. Rf7+
{[%clk 0:00:55.3]} 41... Kg6 {[%clk 0:00:42.3]} 42. Qg8# {[%clk 0:00:55.8]} 1-0

[Event "Late-Titled-Tuesday-Blitz-May-14-2024"]
[Site "Chess.com"]
[Date "2024.05.14"]
[Round "6"]
[White "Rud_Makarian"]
[Black "AlexOstrovskiy"]
[Result "1-0"]
[WhiteElo "2949"]
[BlackElo "2718"]
[TimeControl "180+1"]
[EndTime "15:05:09 PDT"]
[Termination "Rud_Makarian won by resignation"]

1. d4 {[%clk 0:03:00.9]} 1... Nf6 {[%clk 0:02:59.3]} 2. c4 {[%clk 0:03:01.3]}
2... e5 {[%clk 0:02:58.9]} 3. dxe5 {[%clk 0:03:00.8]} 3... Ng4 {[%clk
0:02:59.2]} 4. e4 {[%clk 0:03:00.8]} 4... Nxe5 {[%clk 0:02:58.9]} 5. f4 {[%clk
0:03:00.7]} 5... Nec6 {[%clk 0:02:58.4]} 6. Nc3 {[%clk 0:02:59.2]} 6... Bb4
{[%clk 0:02:54.5]} 7. Ne2 {[%clk 0:02:57.5]} 7... Qh4+ {[%clk 0:02:47.2]} 8. g3
{[%clk 0:02:56.1]} 8... Qe7 {[%clk 0:02:47.9]} 9. Bg2 {[%clk 0:02:54.8]} 9...
Qc5 {[%clk 0:02:26.9]} 10. Qd3 {[%clk 0:02:44.2]} 10... a5 {[%clk 0:02:22.2]}
11. a3 {[%clk 0:02:43.3]} 11... Bxc3+ {[%clk 0:02:17.3]} 12. Nxc3 {[%clk
0:02:44]} 12... Na6 {[%clk 0:02:18]} 13. Be3 {[%clk 0:02:43.6]} 13... Qh5 {[%clk
0:02:14.8]} 14. O-O {[%clk 0:02:40.6]} 14... d6 {[%clk 0:02:14.1]} 15. Nd5
{[%clk 0:02:31.9]} 15... O-O {[%clk 0:02:03.7]} 16. f5 {[%clk 0:02:25.5]} 16...
f6 {[%clk 0:01:56.5]} 17. g4 {[%clk 0:02:12.4]} 17... Qxg4 {[%clk 0:01:47.8]}
18. Rf4 {[%clk 0:02:12]} 18... Qh5 {[%clk 0:01:45.2]} 19. Kh1 {[%clk 0:02:09.6]}
19... Ne5 {[%clk 0:01:30.3]} 20. Qf1 {[%clk 0:01:59.5]} 20... Bd7 {[%clk
0:01:11.6]} 21. Qf2 {[%clk 0:01:51.2]} 21... Nd3 {[%clk 0:01:08.7]} 22. Qg3
{[%clk 0:01:49.3]} 22... Nxf4 {[%clk 0:01:06.7]} 23. Bxf4 {[%clk 0:01:50.2]}
23... Kh8 {[%clk 0:00:58]} 24. Bf3 {[%clk 0:01:46.7]} 24... Qf7 {[%clk
0:00:57.8]} 25. Rg1 {[%clk 0:01:46.5]} 25... Rg8 {[%clk 0:00:36.7]} 26. Bd2
{[%clk 0:01:28]} 26... Bc6 {[%clk 0:00:31.6]} 27. Nf4 {[%clk 0:01:25]} 27... h6
{[%clk 0:00:11.9]} 28. Qh4 {[%clk 0:01:17.4]} 28... Kh7 {[%clk 0:00:11.2]} 29.
Rg6 {[%clk 0:01:09.7]} 29... Nc5 {[%clk 0:00:10]} 30. Ne6 {[%clk 0:01:10.1]}
30... Nxe6 {[%clk 0:00:03.3]} 31. Rxh6+ {[%clk 0:01:08.8]} 1-0

[Event "Late-Titled-Tuesday-Blitz-May-14-2024"]
[Site "Chess.com"]
[Date "2024.05.14"]
[Round "6"]
[White "ccccvhhhj"]
[Black "Masterisback04"]
[Result "1-0"]
[WhiteElo "2461"]
[BlackElo "2035"]
[TimeControl "180+1"]
[EndTime "15:05:09 PDT"]
[Termination "ccccvhhhj won on time"]

1. e4 {[%clk 0:03:00.9]} 1... c5 {[%clk 0:02:57.1]} 2. Nf3 {[%clk 0:03:01]} 2...
e6 {[%clk 0:02:54.3]} 3. b4 {[%clk 0:03:00.8]} 3... cxb4 {[%clk 0:02:47.7]} 4.
a3 {[%clk 0:03:01.1]} 4... d5 {[%clk 0:02:45.4]} 5. e5 {[%clk 0:03:01]} 5... Nc6
{[%clk 0:02:42.5]} 6. axb4 {[%clk 0:03:01]} 6... Bxb4 {[%clk 0:02:41.8]} 7. c3
{[%clk 0:03:01.9]} 7... Be7 {[%clk 0:02:40.6]} 8. d4 {[%clk 0:03:02.8]} 8... g5
{[%clk 0:02:40.8]} 9. Bd3 {[%clk 0:03:02.6]} 9... g4 {[%clk 0:02:39.7]} 10. Nfd2
{[%clk 0:03:01.5]} 10... h5 {[%clk 0:02:39.6]} 11. O-O {[%clk 0:03:01.5]} 11...
Nh6 {[%clk 0:02:17.8]} 12. Na3 {[%clk 0:03:01.1]} 12... Nf5 {[%clk 0:00:59.8]}
13. Nc2 {[%clk 0:03:00.6]} 13... Bg5 {[%clk 0:00:56.9]} 14. Nb3 {[%clk
0:02:59.2]} 14... Rg8 {[%clk 0:00:47.1]} 15. Ba3 {[%clk 0:02:57]} 15... Bd7
{[%clk 0:00:16.1]} 16. Nc5 {[%clk 0:02:55.9]} 16... Bc8 {[%clk 0:00:16.4]} 17.
Re1 {[%clk 0:02:55.2]} 17... Bf4 {[%clk 0:00:10.6]} 18. Bxf5 {[%clk 0:02:54.3]}
18... exf5 {[%clk 0:00:06]} 19. e6 {[%clk 0:02:55.2]} 19... fxe6 {[%clk
0:00:06.2]} 20. Nxe6 {[%clk 0:02:56.1]} 20... Bxe6 {[%clk 0:00:06]} 21. Rxe6+
{[%clk 0:02:57]} 21... Kf7 {[%clk 0:00:06.8]} 22. Qe2 {[%clk 0:02:55.2]} 22...
Rg6 {[%clk 0:00:05.6]} 23. Re1 {[%clk 0:02:54.7]} 23... Qd7 {[%clk 0:00:03.6]}
24. Rxg6 {[%clk 0:02:48.1]} 24... Kxg6 {[%clk 0:00:04.5]} 25. g3 {[%clk
0:02:48.8]} 25... Bg5 {[%clk 0:00:04.1]} 26. Nb4 {[%clk 0:02:28.5]} 26... Kf7
{[%clk 0:00:03.3]} 27. Nd3 {[%clk 0:02:21]} 27... Re8 {[%clk 0:00:03]} 28. Ne5+
{[%clk 0:02:21.4]} 28... Nxe5 {[%clk 0:00:03.3]} 29. dxe5 {[%clk 0:02:22.3]}
29... Ke6 {[%clk 0:00:03.3]} 30. Bd6 {[%clk 0:02:19.7]} 30... Rc8 {[%clk
0:00:02.9]} 31. Qd3 {[%clk 0:02:15.6]} 31... Rc4 {[%clk 0:00:02.5]} 32. Rd1
{[%clk 0:02:15.8]} 32... Qc6 {[%clk 0:00:02.4]} 33. Qb1 {[%clk 0:02:14.3]} 33...
b6 {[%clk 0:00:02.2]} 34. Qa1 {[%clk 0:02:12]} 34... a5 {[%clk 0:00:02.3]} 35.
Rd3 {[%clk 0:02:03.3]} 35... Qb5 {[%clk 0:00:02.5]} 36. Kg2 {[%clk 0:02:00.2]}
36... Re4 {[%clk 0:00:01.7]} 37. Qd1 {[%clk 0:01:56.7]} 37... Rc4 {[%clk
0:00:01.3]} 38. Qa1 {[%clk 0:01:43.9]} 38... a4 {[%clk 0:00:01.3]} 39. Qa3
{[%clk 0:01:44.2]} 39... Qb3 {[%clk 0:00:01.3]} 40. Qa1 {[%clk 0:01:43.1]} 40...
b5 {[%clk 0:00:00.6]} 41. Bf8 {[%clk 0:01:43]} 41... Be7 {[%clk 0:00:00.3]} 42.
Bxe7 {[%clk 0:01:41.8]} 42... Kxe7 {[%clk 0:00:01.2]} 43. Rxd5 {[%clk
0:01:42.3]} 43... Ke6 {[%clk 0:00:00.6]} 44. Qd1 {[%clk 0:01:42.4]} 1-0

[Event "Late-Titled-Tuesday-Blitz-May-14-2024"]
[Site "Chess.com"]
[Date "2024.05.14"]
[Round "6"]
[White "larsmandreassen"]
[Black "annasargsyan_m"]
[Result "0-1"]
[WhiteElo "2277"]
[BlackElo "2601"]
[TimeControl "180+1"]
[EndTime "15:05:12 PDT"]
[Termination "annasargsyan_m won by resignation"]

1. d4 {[%clk 0:02:59.9]} 1... d5 {[%clk 0:02:23.2]} 2. Nf3 {[%clk 0:03:00.8]}
2... Nf6 {[%clk 0:02:23]} 3. Bg5 {[%clk 0:03:00.5]} 3... Bf5 {[%clk 0:02:20.4]}
4. e3 {[%clk 0:03:00.2]} 4... Nbd7 {[%clk 0:02:21]} 5. Bd3 {[%clk 0:02:59.6]}
5... Bg6 {[%clk 0:02:19.9]} 6. O-O {[%clk 0:02:57]} 6... c6 {[%clk 0:02:15.8]}
7. c3 {[%clk 0:02:43.2]} 7... Qb6 {[%clk 0:02:15.2]} 8. Bxg6 {[%clk 0:02:41.6]}
8... hxg6 {[%clk 0:02:14.5]} 9. Qb3 {[%clk 0:02:40.6]} 9... e6 {[%clk
0:02:11.1]} 10. Nbd2 {[%clk 0:02:36.8]} 10... Bd6 {[%clk 0:02:11]} 11. h3 {[%clk
0:02:34.8]} 11... Qc7 {[%clk 0:02:07.4]} 12. Qc2 {[%clk 0:02:26.1]} 12... c5
{[%clk 0:02:01.7]} 13. e4 {[%clk 0:02:20.5]} 13... cxd4 {[%clk 0:01:40.7]} 14.
Nxd4 {[%clk 0:02:19.9]} 14... Bh2+ {[%clk 0:01:38.6]} 15. Kh1 {[%clk 0:02:19.6]}
15... Bf4 {[%clk 0:01:31.7]} 16. Nb5 {[%clk 0:02:03.8]} 16... Qb8 {[%clk
0:01:24.3]} 17. exd5 {[%clk 0:01:46.9]} 17... Nxd5 {[%clk 0:00:46.2]} 18. Nf3
{[%clk 0:01:32.4]} 18... Bxg5 {[%clk 0:00:38.5]} 19. Nxg5 {[%clk 0:01:33.3]}
19... Qf4 {[%clk 0:00:38]} 20. Nf3 {[%clk 0:01:12.4]} 20... Rxh3+ {[%clk
0:00:28.8]} 21. gxh3 {[%clk 0:01:12.2]} 21... Qxf3+ {[%clk 0:00:29.1]} 22. Kh2
{[%clk 0:01:12.8]} 22... Nf4 {[%clk 0:00:27.5]} 23. Nd6+ {[%clk 0:00:58.8]}
23... Kf8 {[%clk 0:00:26]} 24. Qe4 {[%clk 0:00:59]} 24... Qxh3+ {[%clk
0:00:21.9]} 25. Kg1 {[%clk 0:00:59.5]} 25... Qg4+ {[%clk 0:00:20.7]} 26. Kh2
{[%clk 0:00:55.3]} 26... Ke7 {[%clk 0:00:21.2]} 0-1